Workbook

Sheet main
E5: y=f'(x) | G5: =process!F1 -> f(x)=a*ln(x)
B6: 보조선 | E6: y=f''(x)
B7: * 아래 스크롤바를 움직여서 그래프의 크기를 조절할 수 있습니다.
F8: 5 | G8: =IF(F8<=20,1,5) -> 1
C10: =process!F1 -> f(x)=a*ln(x) | I10: a | J10: b | K10: c | L10: d
C11: =process!G1 -> 0 | I11: 0.1 | J11: 0.1 | K11: 0.1 | L11: 0.1
I12: =I11*(-I13+50) -> 2.4 | J12: =J11*(-J13+50) -> 0.1 | K12: =K11*(-K13+50) -> 0.1 | L12: =L11*(-L13+50) -> 0.1
I13: 26 | J13: 49 | K13: 49 | L13: 49
K14: x의 범위
K15: =-1*F8 -> -5 | L15: =F8 -> 5
G30: 660 | H30: =main!G30*0.016-main!F7 -> 10.56
A31: Copyright © 2009 : 성균관대학교 수학과 BK21 사업단 All rights reserved, http://bkmath.skku.ac.kr

Sheet process
E1: x | F1: f(x)=a*ln(x) | I1: a | J1: b | K1: c | L1: d | N1: realf(x)1 | O1: realf(x)2 | P1: realf(x) | V1: f(g(x)) | W1: g(f(x)) | Z1: realf(g(x))1 | AA1: realf(g(x))2 | AB1: realf(g(x)) | AC1: realg(f(x))1 | AD1: realg(f(x))2 | AE1: realg(f(x)) | AH1: x2 | AI1: xm2 | AJ1: ym2 | AK1: y' | AM1: x3 | AN1: xm3 | AO1: ym3 | AP1: y''
E2: =process!K4 -> -5 | F2: =$I$2*LN($E2) ->  | I2: =main!I12 -> 2.4 | J2: =main!J12 -> 0.1 | K2: =main!K12 -> 0.1 | L2: =main!L12 -> 0.1 | N2: =F2 ->  | O2: =IF(O3=1000000,1000000,IF(O3=-1000000,-1000000,IF(AND(ISNUMBER(F2)=FALSE,F3-F4>0),1000000,IF(AND(ISNUMBER(F2)=FALSE,F3-F4<0),-1000000,F2)))) -> -1000000 | P2: =IF(AND(ISNUMBER(N2)=TRUE,ISNUMBER(O2)=TRUE),IF(OR(AND(N2=-1000000,O2=1000000),AND(N2=1000000,O2=-1000000),AND(N2=-1000000,O2=-1000000),AND(N2=1000000,O2=1000000)),0,IF(OR(N2=1000000,N2=-1000000),O2,IF(OR(O2=1000000,O2=-1000000),N2,O2))),IF(ISNUMBER(N2)=TRUE,N2,O2)) -> -1000000 | V2: =$I$2*$G2^2+$J$2 -> 0.1 | W2: =$K$2*$F2+$L$2 -> 
E3: =E2+process!I$4 -> -4.99 | F3: =$I$2*LN($E3) ->  | K3: a range of x | N3: =F3 ->  | O3: =IF(O4=1000000,1000000,IF(O4=-1000000,-1000000,IF(AND(ISNUMBER(F3)=FALSE,F4-F5>0),1000000,IF(AND(ISNUMBER(F3)=FALSE,F4-F5<0),-1000000,F3)))) -> -1000000 | P3: =IF(AND(ISNUMBER(N3)=TRUE,ISNUMBER(O3)=TRUE),IF(OR(AND(N3=-1000000,O3=1000000),AND(N3=1000000,O3=-1000000),AND(N3=-1000000,O3=-1000000),AND(N3=1000000,O3=1000000)),0,IF(OR(N3=1000000,N3=-1000000),O3,IF(OR(O3=1000000,O3=-1000000),N3,O3))),IF(ISNUMBER(N3)=TRUE,N3,O3)) -> -1000000 | V3: =$I$2*$G3^2+$J$2 -> 0.1 | W3: =$K$2*$F3+$L$2 ->  | Z3: =AK3 ->  | AA3: =IF(AA4=1000000,1000000,IF(AA4=-1000000,-1000000,IF(AND(ISNUMBER(AK3)=FALSE,AK4-AK5>0),1000000,IF(AND(ISNUMBER(AK3)=FALSE,AK4-AK5<0),-1000000,AK3)))) -> 1000000 | AB3: =IF(AND(ISNUMBER(Z3)=TRUE,ISNUMBER(AA3)=TRUE),IF(OR(AND(Z3=-1000000,AA3=1000000),AND(Z3=1000000,AA3=-1000000),AND(Z3=-1000000,AA3=-1000000),AND(Z3=1000000,AA3=1000000)),0,IF(OR(Z3=1000000,Z3=-1000000),AA3,IF(OR(AA3=1000000,AA3=-1000000),Z3,AA3))),IF(ISNUMBER(Z3)=TRUE,Z3,AA3)) -> 1000000 | AH3: =AVERAGE(E2:E3) -> -4.995 | AI3: =E3-E2 -> 0.01 | AJ3: =F3-F2 ->  | AK3: =AJ3/AI3 -> 
E4: =E3+process!I$4 -> -4.98 | I4: =IF(OR(AND(K4>=0,K5>=0),AND(K4<0,K5<0)),(MAX(K4:K5)-MIN(K4:K5))/1000,(ABS(K4)+ABS(K5))/1000) -> 0.01 | J4: x1 | K4: =main!K15 -> -5 | N4: =IF(N3=1000000,1000000,IF(N3=-1000000,-1000000,IF(AND(ISNUMBER(F4)=FALSE,F3-F2>0),1000000,IF(AND(ISNUMBER(F4)=FALSE,F3-F2<0),-1000000,F4)))) ->  | O4: =IF(O5=1000000,1000000,IF(O5=-1000000,-1000000,IF(AND(ISNUMBER(F4)=FALSE,F5-F6>0),1000000,IF(AND(ISNUMBER(F4)=FALSE,F5-F6<0),-1000000,F4)))) -> -1000000 | P4: =IF(AND(ISNUMBER(N4)=TRUE,ISNUMBER(O4)=TRUE),IF(OR(AND(N4=-1000000,O4=1000000),AND(N4=1000000,O4=-1000000),AND(N4=-1000000,O4=-1000000),AND(N4=1000000,O4=1000000)),0,IF(OR(N4=1000000,N4=-1000000),O4,IF(OR(O4=1000000,O4=-1000000),N4,O4))),IF(ISNUMBER(N4)=TRUE,N4,O4)) -> -1000000 | V4: 0.1 | Z4: =AK4 ->  | AA4: =IF(AA5=1000000,1000000,IF(AA5=-1000000,-1000000,IF(AND(ISNUMBER(AK4)=FALSE,AK5-AK6>0),1000000,IF(AND(ISNUMBER(AK4)=FALSE,AK5-AK6<0),-1000000,AK4)))) -> 1000000 | AB4: 1000000 | AC4: =AP4 ->  | AD4: =IF(AD5=1000000,1000000,IF(AD5=-1000000,-1000000,IF(AND(ISNUMBER(AP4)=FALSE,AP5-AP6>0),1000000,IF(AND(ISNUMBER(AP4)=FALSE,AP5-AP6<0),-1000000,AP4)))) -> -1000000 | AE4: =IF(AND(ISNUMBER(AC4)=TRUE,ISNUMBER(AD4)=TRUE),IF(OR(AND(AC4=-1000000,AD4=1000000),AND(AC4=1000000,AD4=-1000000),AND(AC4=-1000000,AD4=-1000000),AND(AC4=1000000,AD4=1000000)),0,IF(OR(AC4=1000000,AC4=-1000000),AD4,IF(OR(AD4=1000000,AD4=-1000000),AC4,AD4))),IF(ISNUMBER(AC4)=TRUE,AC4,AD4)) -> -1000000 | AH4: =AVERAGE(E3:E4) -> -4.985 | AI4: =E4-E3 -> 0.01 | AJ4: =F4-F3 ->  | AK4: =AJ4/AI4 ->  | AM4: =AVERAGE(AH3:AH4) -> -4.99 | AN4: =AH4-AH3 -> 0.01 | AO4: =AK4-AK3 ->  | AP4: =AO4/AN4 -> 
E5: =E4+process!I$4 -> -4.97 | J5: x2 | K5: =main!L15 -> 5 | N5: =IF(N4=1000000,1000000,IF(N4=-1000000,-1000000,IF(AND(ISNUMBER(F5)=FALSE,F4-F3>0),1000000,IF(AND(ISNUMBER(F5)=FALSE,F4-F3<0),-1000000,F5)))) ->  | O5: =IF(O6=1000000,1000000,IF(O6=-1000000,-1000000,IF(AND(ISNUMBER(F5)=FALSE,F6-F7>0),1000000,IF(AND(ISNUMBER(F5)=FALSE,F6-F7<0),-1000000,F5)))) -> -1000000 | P5: =IF(AND(ISNUMBER(N5)=TRUE,ISNUMBER(O5)=TRUE),IF(OR(AND(N5=-1000000,O5=1000000),AND(N5=1000000,O5=-1000000),AND(N5=-1000000,O5=-1000000),AND(N5=1000000,O5=1000000)),0,IF(OR(N5=1000000,N5=-1000000),O5,IF(OR(O5=1000000,O5=-1000000),N5,O5))),IF(ISNUMBER(N5)=TRUE,N5,O5)) -> -1000000 | V5: 0.1 | Z5: =IF(Z4=1000000,1000000,IF(Z4=-1000000,-1000000,IF(AND(ISNUMBER(AK5)=FALSE,AK4-AK3>0),1000000,IF(AND(ISNUMBER(AK5)=FALSE,AK4-AK3<0),-1000000,AK5)))) ->  | AA5: =IF(AA6=1000000,1000000,IF(AA6=-1000000,-1000000,IF(AND(ISNUMBER(AK5)=FALSE,AK6-AK7>0),1000000,IF(AND(ISNUMBER(AK5)=FALSE,AK6-AK7<0),-1000000,AK5)))) -> 1000000 | AB5: 1000000 | AC5: =AP5 ->  | AD5: =IF(AD6=1000000,1000000,IF(AD6=-1000000,-1000000,IF(AND(ISNUMBER(AP5)=FALSE,AP6-AP7>0),1000000,IF(AND(ISNUMBER(AP5)=FALSE,AP6-AP7<0),-1000000,AP5)))) -> -1000000 | AE5: -1000000 | AH5: -4.975 | AI5: 0.01 | AJ5: =F5-F4 ->  | AM5: =AVERAGE(AH4:AH5) -> -4.98 | AN5: =AH5-AH4 -> 0.01 | AO5: =AK5-AK4 ->  | AP5: =AO5/AN5 -> 
E6: =E5+process!I$4 -> -4.96 | N6: =IF(N5=1000000,1000000,IF(N5=-1000000,-1000000,IF(AND(ISNUMBER(F6)=FALSE,F5-F4>0),1000000,IF(AND(ISNUMBER(F6)=FALSE,F5-F4<0),-1000000,F6)))) ->  | O6: =IF(O7=1000000,1000000,IF(O7=-1000000,-1000000,IF(AND(ISNUMBER(F6)=FALSE,F7-F8>0),1000000,IF(AND(ISNUMBER(F6)=FALSE,F7-F8<0),-1000000,F6)))) -> -1000000 | P6: =IF(AND(ISNUMBER(N6)=TRUE,ISNUMBER(O6)=TRUE),IF(OR(AND(N6=-1000000,O6=1000000),AND(N6=1000000,O6=-1000000),AND(N6=-1000000,O6=-1000000),AND(N6=1000000,O6=1000000)),0,IF(OR(N6=1000000,N6=-1000000),O6,IF(OR(O6=1000000,O6=-1000000),N6,O6))),IF(ISNUMBER(N6)=TRUE,N6,O6)) -> -1000000 | V6: 0.1 | Z6: =IF(Z5=1000000,1000000,IF(Z5=-1000000,-1000000,IF(AND(ISNUMBER(AK6)=FALSE,AK5-AK4>0),1000000,IF(AND(ISNUMBER(AK6)=FALSE,AK5-AK4<0),-1000000,AK6)))) ->  | AA6: =IF(AA7=1000000,1000000,IF(AA7=-1000000,-1000000,IF(AND(ISNUMBER(AK6)=FALSE,AK7-AK8>0),1000000,IF(AND(ISNUMBER(AK6)=FALSE,AK7-AK8<0),-1000000,AK6)))) -> 1000000 | AB6: 1000000 | AC6: =IF(AC5=1000000,1000000,IF(AC5=-1000000,-1000000,IF(AND(ISNUMBER(AP6)=FALSE,AP5-AP4>0),1000000,IF(AND(ISNUMBER(AP6)=FALSE,AP5-AP4<0),-1000000,AP6)))) ->  | AD6: =IF(AD7=1000000,1000000,IF(AD7=-1000000,-1000000,IF(AND(ISNUMBER(AP6)=FALSE,AP7-AP8>0),1000000,IF(AND(ISNUMBER(AP6)=FALSE,AP7-AP8<0),-1000000,AP6)))) -> -1000000 | AE6: -1000000 | AH6: -4.965 | AI6: 0.01 | AM6: -4.97 | AN6: 0.01
E7: =E6+process!I$4 -> -4.95 | O7: -1000000 | P7: -1000000 | V7: 0.1 | AA7: 1000000 | AB7: 1000000 | AC7: =IF(AC6=1000000,1000000,IF(AC6=-1000000,-1000000,IF(AND(ISNUMBER(AP7)=FALSE,AP6-AP5>0),1000000,IF(AND(ISNUMBER(AP7)=FALSE,AP6-AP5<0),-1000000,AP7)))) ->  | AD7: =IF(AD8=1000000,1000000,IF(AD8=-1000000,-1000000,IF(AND(ISNUMBER(AP7)=FALSE,AP8-AP9>0),1000000,IF(AND(ISNUMBER(AP7)=FALSE,AP8-AP9<0),-1000000,AP7)))) -> -1000000 | AE7: -1000000 | AH7: -4.955 | AI7: 0.01 | AM7: -4.96 | AN7: 0.01
E8: =E7+process!I$4 -> -4.94 | O8: -1000000 | P8: -1000000 | V8: 0.1 | AA8: 1000000 | AB8: 1000000 | AD8: -1000000 | AE8: -1000000 | AH8: -4.945 | AI8: 0.01 | AM8: -4.95 | AN8: 0.01
E9: =E8+process!I$4 -> -4.93 | I9: a*ln(x) | O9: -1000000 | P9: -1000000 | V9: 0.1 | AA9: 1000000 | AB9: 1000000 | AD9: -1000000 | AE9: -1000000 | AH9: -4.935 | AI9: 0.01 | AM9: -4.94 | AN9: 0.01
E10: =E9+process!I$4 -> -4.92 | O10: -1000000 | P10: -1000000 | V10: 0.1 | AA10: 1000000 | AB10: 1000000 | AD10: -1000000 | AE10: -1000000 | AH10: -4.925 | AI10: 0.01 | AM10: -4.93 | AN10: 0.01
E11: =E10+process!I$4 -> -4.91 | O11: -1000000 | P11: -1000000 | V11: 0.1 | AA11: 1000000 | AB11: 1000000 | AD11: -1000000 | AE11: -1000000 | AH11: -4.915 | AI11: 0.01 | AM11: -4.92 | AN11: 0.01
E12: =E11+process!I$4 -> -4.9 | O12: -1000000 | P12: -1000000 | V12: 0.1 | AA12: 1000000 | AB12: 1000000 | AD12: -1000000 | AE12: -1000000 | AH12: -4.905 | AI12: 0.01 | AM12: -4.91 | AN12: 0.01
E13: =E12+process!I$4 -> -4.89 | O13: -1000000 | P13: -1000000 | V13: 0.1 | AA13: 1000000 | AB13: 1000000 | AD13: -1000000 | AE13: -1000000 | AH13: -4.895 | AI13: 0.01 | AM13: -4.9 | AN13: 0.01
E14: =E13+process!I$4 -> -4.88 | O14: -1000000 | P14: -1000000 | V14: 0.1 | AA14: 1000000 | AB14: 1000000 | AD14: -1000000 | AE14: -1000000 | AH14: -4.885 | AI14: 0.01 | AM14: -4.89 | AN14: 0.01
E15: =E14+process!I$4 -> -4.87 | O15: -1000000 | P15: -1000000 | V15: 0.1 | AA15: 1000000 | AB15: 1000000 | AD15: -1000000 | AE15: -1000000 | AH15: -4.875 | AI15: 0.01 | AM15: -4.88 | AN15: 0.01
E16: =E15+process!I$4 -> -4.86 | O16: -1000000 | P16: -1000000 | V16: 0.1 | AA16: 1000000 | AB16: 1000000 | AD16: -1000000 | AE16: -1000000 | AH16: -4.865 | AI16: 0.01 | AM16: -4.87 | AN16: 0.01
E17: =E16+process!I$4 -> -4.85 | O17: -1000000 | P17: -1000000 | V17: 0.1 | AA17: 1000000 | AB17: 1000000 | AD17: -1000000 | AE17: -1000000 | AH17: -4.855 | AI17: 0.01 | AM17: -4.86 | AN17: 0.01
E18: =E17+process!I$4 -> -4.84 | O18: -1000000 | P18: -1000000 | V18: 0.1 | AA18: 1000000 | AB18: 1000000 | AD18: -1000000 | AE18: -1000000 | AH18: -4.845 | AI18: 0.01 | AM18: -4.85 | AN18: 0.01
E19: =E18+process!I$4 -> -4.83 | O19: -1000000 | P19: -1000000 | V19: 0.1 | AA19: 1000000 | AB19: 1000000 | AD19: -1000000 | AE19: -1000000 | AH19: -4.835 | AI19: 0.01 | AM19: -4.84 | AN19: 0.01
E20: =E19+process!I$4 -> -4.82 | O20: -1000000 | P20: -1000000 | V20: 0.1 | AA20: 1000000 | AB20: 1000000 | AD20: -1000000 | AE20: -1000000 | AH20: -4.825 | AI20: 0.01 | AM20: -4.83 | AN20: 0.01
E21: =E20+process!I$4 -> -4.81 | O21: -1000000 | P21: -1000000 | V21: 0.1 | AA21: 1000000 | AB21: 1000000 | AD21: -1000000 | AE21: -1000000 | AH21: -4.815 | AI21: 0.01 | AM21: -4.82 | AN21: 0.01
E22: =E21+process!I$4 -> -4.8 | O22: -1000000 | P22: -1000000 | V22: 0.1 | AA22: 1000000 | AB22: 1000000 | AD22: -1000000 | AE22: -1000000 | AH22: -4.805 | AI22: 0.01 | AM22: -4.81 | AN22: 0.01
E23: =E22+process!I$4 -> -4.79 | O23: -1000000 | P23: -1000000 | V23: 0.1 | AA23: 1000000 | AB23: 1000000 | AD23: -1000000 | AE23: -1000000 | AH23: -4.795 | AI23: 0.01 | AM23: -4.8 | AN23: 0.01
E24: =E23+process!I$4 -> -4.78 | O24: -1000000 | P24: -1000000 | V24: 0.1 | AA24: 1000000 | AB24: 1000000 | AD24: -1000000 | AE24: -1000000 | AH24: -4.785 | AI24: 0.01 | AM24: -4.79 | AN24: 0.01
E25: =E24+process!I$4 -> -4.77 | O25: -1000000 | P25: -1000000 | V25: 0.1 | AA25: 1000000 | AB25: 1000000 | AD25: -1000000 | AE25: -1000000 | AH25: -4.775 | AI25: 0.01 | AM25: -4.78 | AN25: 0.01
E26: =E25+process!I$4 -> -4.76 | O26: -1000000 | P26: -1000000 | V26: 0.1 | AA26: 1000000 | AB26: 1000000 | AD26: -1000000 | AE26: -1000000 | AH26: -4.765 | AI26: 0.01 | AM26: -4.77 | AN26: 0.01
E27: =E26+process!I$4 -> -4.75 | O27: -1000000 | P27: -1000000 | V27: 0.1 | AA27: 1000000 | AB27: 1000000 | AD27: -1000000 | AE27: -1000000 | AH27: -4.755 | AI27: 0.01 | AM27: -4.76 | AN27: 0.01
E28: =E27+process!I$4 -> -4.74 | O28: -1000000 | P28: -1000000 | V28: 0.1 | AA28: 1000000 | AB28: 1000000 | AD28: -1000000 | AE28: -1000000 | AH28: -4.745 | AI28: 0.01 | AM28: -4.75 | AN28: 0.01
E29: =E28+process!I$4 -> -4.73 | O29: -1000000 | P29: -1000000 | V29: 0.1 | AA29: 1000000 | AB29: 1000000 | AD29: -1000000 | AE29: -1000000 | AH29: -4.735 | AI29: 0.01 | AM29: -4.74 | AN29: 0.01
E30: =E29+process!I$4 -> -4.72 | O30: -1000000 | P30: -1000000 | V30: 0.1 | AA30: 1000000 | AB30: 1000000 | AD30: -1000000 | AE30: -1000000 | AH30: -4.725 | AI30: 0.01 | AM30: -4.73 | AN30: 0.01
E31: =E30+process!I$4 -> -4.71 | O31: -1000000 | P31: -1000000 | V31: 0.1 | AA31: 1000000 | AB31: 1000000 | AD31: -1000000 | AE31: -1000000 | AH31: -4.715 | AI31: 0.01 | AM31: -4.72 | AN31: 0.01
E32: =E31+process!I$4 -> -4.7 | O32: -1000000 | P32: -1000000 | V32: 0.1 | AA32: 1000000 | AB32: 1000000 | AD32: -1000000 | AE32: -1000000 | AH32: -4.705 | AI32: 0.01 | AM32: -4.71 | AN32: 0.01
E33: =E32+process!I$4 -> -4.69 | O33: -1000000 | P33: -1000000 | V33: 0.1 | AA33: 1000000 | AB33: 1000000 | AD33: -1000000 | AE33: -1000000 | AH33: -4.695 | AI33: 0.01 | AM33: -4.7 | AN33: 0.01
E34: =E33+process!I$4 -> -4.68 | O34: -1000000 | P34: -1000000 | V34: 0.1 | AA34: 1000000 | AB34: 1000000 | AD34: -1000000 | AE34: -1000000 | AH34: -4.685 | AI34: 0.01 | AM34: -4.69 | AN34: 0.01
E35: =E34+process!I$4 -> -4.67 | O35: -1000000 | P35: -1000000 | V35: 0.1 | AA35: 1000000 | AB35: 1000000 | AD35: -1000000 | AE35: -1000000 | AH35: -4.675 | AI35: 0.01 | AM35: -4.68 | AN35: 0.01
E36: =E35+process!I$4 -> -4.66 | O36: -1000000 | P36: -1000000 | V36: 0.1 | AA36: 1000000 | AB36: 1000000 | AD36: -1000000 | AE36: -1000000 | AH36: -4.665 | AI36: 0.01 | AM36: -4.67 | AN36: 0.01
E37: =E36+process!I$4 -> -4.65 | O37: -1000000 | P37: -1000000 | V37: 0.1 | AA37: 1000000 | AB37: 1000000 | AD37: -1000000 | AE37: -1000000 | AH37: -4.655 | AI37: 0.01 | AM37: -4.66 | AN37: 0.01
E38: =E37+process!I$4 -> -4.64 | O38: -1000000 | P38: -1000000 | V38: 0.1 | AA38: 1000000 | AB38: 1000000 | AD38: -1000000 | AE38: -1000000 | AH38: -4.645 | AI38: 0.01 | AM38: -4.65 | AN38: 0.01
E39: =E38+process!I$4 -> -4.63 | O39: -1000000 | P39: -1000000 | V39: 0.1 | AA39: 1000000 | AB39: 1000000 | AD39: -1000000 | AE39: -1000000 | AH39: -4.635 | AI39: 0.01 | AM39: -4.64 | AN39: 0.01
E40: =E39+process!I$4 -> -4.62 | O40: -1000000 | P40: -1000000 | V40: 0.1 | AA40: 1000000 | AB40: 1000000 | AD40: -1000000 | AE40: -1000000 | AH40: -4.625 | AI40: 0.01 | AM40: -4.63 | AN40: 0.01
E41: =E40+process!I$4 -> -4.61 | O41: -1000000 | P41: -1000000 | V41: 0.1 | AA41: 1000000 | AB41: 1000000 | AD41: -1000000 | AE41: -1000000 | AH41: -4.615 | AI41: 0.01 | AM41: -4.62 | AN41: 0.01
E42: =E41+process!I$4 -> -4.6 | O42: -1000000 | P42: -1000000 | V42: 0.1 | AA42: 1000000 | AB42: 1000000 | AD42: -1000000 | AE42: -1000000 | AH42: -4.605 | AI42: 0.01 | AM42: -4.61 | AN42: 0.01
E43: =E42+process!I$4 -> -4.59 | O43: -1000000 | P43: -1000000 | V43: 0.1 | AA43: 1000000 | AB43: 1000000 | AD43: -1000000 | AE43: -1000000 | AH43: -4.595 | AI43: 0.01 | AM43: -4.6 | AN43: 0.01
E44: =E43+process!I$4 -> -4.58 | O44: -1000000 | P44: -1000000 | V44: 0.1 | AA44: 1000000 | AB44: 1000000 | AD44: -1000000 | AE44: -1000000 | AH44: -4.585 | AI44: 0.01 | AM44: -4.59 | AN44: 0.01
E45: =E44+process!I$4 -> -4.57 | O45: -1000000 | P45: -1000000 | V45: 0.1 | AA45: 1000000 | AB45: 1000000 | AD45: -1000000 | AE45: -1000000 | AH45: -4.575 | AI45: 0.01 | AM45: -4.58 | AN45: 0.01
E46: =E45+process!I$4 -> -4.56 | O46: -1000000 | P46: -1000000 | V46: 0.1 | AA46: 1000000 | AB46: 1000000 | AD46: -1000000 | AE46: -1000000 | AH46: -4.565 | AI46: 0.01 | AM46: -4.57 | AN46: 0.01
E47: =E46+process!I$4 -> -4.55 | O47: -1000000 | P47: -1000000 | V47: 0.1 | AA47: 1000000 | AB47: 1000000 | AD47: -1000000 | AE47: -1000000 | AH47: -4.555 | AI47: 0.01 | AM47: -4.56 | AN47: 0.01
E48: =E47+process!I$4 -> -4.54 | O48: -1000000 | P48: -1000000 | V48: 0.1 | AA48: 1000000 | AB48: 1000000 | AD48: -1000000 | AE48: -1000000 | AH48: -4.545 | AI48: 0.01 | AM48: -4.55 | AN48: 0.01
E49: =E48+process!I$4 -> -4.53 | O49: -1000000 | P49: -1000000 | V49: 0.1 | AA49: 1000000 | AB49: 1000000 | AD49: -1000000 | AE49: -1000000 | AH49: -4.535 | AI49: 0.01 | AM49: -4.54 | AN49: 0.01
E50: =E49+process!I$4 -> -4.52 | O50: -1000000 | P50: -1000000 | V50: 0.1 | AA50: 1000000 | AB50: 1000000 | AD50: -1000000 | AE50: -1000000 | AH50: -4.525 | AI50: 0.01 | AM50: -4.53 | AN50: 0.01
E51: =E50+process!I$4 -> -4.51 | O51: -1000000 | P51: -1000000 | V51: 0.1 | AA51: 1000000 | AB51: 1000000 | AD51: -1000000 | AE51: -1000000 | AH51: -4.515 | AI51: 0.01 | AM51: -4.52 | AN51: 0.01
E52: =E51+process!I$4 -> -4.5 | O52: -1000000 | P52: -1000000 | V52: 0.1 | AA52: 1000000 | AB52: 1000000 | AD52: -1000000 | AE52: -1000000 | AH52: -4.505 | AI52: 0.01 | AM52: -4.51 | AN52: 0.01
E53: =E52+process!I$4 -> -4.49 | O53: -1000000 | P53: -1000000 | V53: 0.1 | AA53: 1000000 | AB53: 1000000 | AD53: -1000000 | AE53: -1000000 | AH53: -4.495 | AI53: 0.01 | AM53: -4.5 | AN53: 0.01
E54: =E53+process!I$4 -> -4.48 | O54: -1000000 | P54: -1000000 | V54: 0.1 | AA54: 1000000 | AB54: 1000000 | AD54: -1000000 | AE54: -1000000 | AH54: -4.485 | AI54: 0.01 | AM54: -4.49 | AN54: 0.01
E55: =E54+process!I$4 -> -4.47 | O55: -1000000 | P55: -1000000 | V55: 0.1 | AA55: 1000000 | AB55: 1000000 | AD55: -1000000 | AE55: -1000000 | AH55: -4.475 | AI55: 0.01 | AM55: -4.48 | AN55: 0.01
E56: =E55+process!I$4 -> -4.46 | O56: -1000000 | P56: -1000000 | V56: 0.1 | AA56: 1000000 | AB56: 1000000 | AD56: -1000000 | AE56: -1000000 | AH56: -4.465 | AI56: 0.01 | AM56: -4.47 | AN56: 0.01
E57: =E56+process!I$4 -> -4.45 | O57: -1000000 | P57: -1000000 | V57: 0.1 | AA57: 1000000 | AB57: 1000000 | AD57: -1000000 | AE57: -1000000 | AH57: -4.455 | AI57: 0.01 | AM57: -4.46 | AN57: 0.01
E58: =E57+process!I$4 -> -4.44 | O58: -1000000 | P58: -1000000 | V58: 0.1 | AA58: 1000000 | AB58: 1000000 | AD58: -1000000 | AE58: -1000000 | AH58: -4.445 | AI58: 0.01 | AM58: -4.45 | AN58: 0.01
E59: =E58+process!I$4 -> -4.43 | O59: -1000000 | P59: -1000000 | V59: 0.1 | AA59: 1000000 | AB59: 1000000 | AD59: -1000000 | AE59: -1000000 | AH59: -4.435 | AI59: 0.01 | AM59: -4.44 | AN59: 0.01
E60: =E59+process!I$4 -> -4.42 | O60: -1000000 | P60: -1000000 | V60: 0.1 | AA60: 1000000 | AB60: 1000000 | AD60: -1000000 | AE60: -1000000 | AH60: -4.425 | AI60: 0.01 | AM60: -4.43 | AN60: 0.01
E61: =E60+process!I$4 -> -4.41 | O61: -1000000 | P61: -1000000 | V61: 0.1 | AA61: 1000000 | AB61: 1000000 | AD61: -1000000 | AE61: -1000000 | AH61: -4.415 | AI61: 0.01 | AM61: -4.42 | AN61: 0.01
E62: =E61+process!I$4 -> -4.4 | O62: -1000000 | P62: -1000000 | V62: 0.1 | AA62: 1000000 | AB62: 1000000 | AD62: -1000000 | AE62: -1000000 | AH62: -4.405 | AI62: 0.01 | AM62: -4.41 | AN62: 0.01
E63: =E62+process!I$4 -> -4.39 | O63: -1000000 | P63: -1000000 | V63: 0.1 | AA63: 1000000 | AB63: 1000000 | AD63: -1000000 | AE63: -1000000 | AH63: -4.395 | AI63: 0.01 | AM63: -4.4 | AN63: 0.01
E64: =E63+process!I$4 -> -4.38 | O64: -1000000 | P64: -1000000 | V64: 0.1 | AA64: 1000000 | AB64: 1000000 | AD64: -1000000 | AE64: -1000000 | AH64: -4.385 | AI64: 0.01 | AM64: -4.39 | AN64: 0.01
E65: =E64+process!I$4 -> -4.37 | O65: -1000000 | P65: -1000000 | V65: 0.1 | AA65: 1000000 | AB65: 1000000 | AD65: -1000000 | AE65: -1000000 | AH65: -4.375 | AI65: 0.01 | AM65: -4.38 | AN65: 0.01
E66: =E65+process!I$4 -> -4.36 | O66: -1000000 | P66: -1000000 | V66: 0.1 | AA66: 1000000 | AB66: 1000000 | AD66: -1000000 | AE66: -1000000 | AH66: -4.365 | AI66: 0.01 | AM66: -4.37 | AN66: 0.01
E67: =E66+process!I$4 -> -4.35 | F67: =$I$2*LN($E67) ->  | O67: -1000000 | P67: -1000000 | V67: =$I$2*$G67^2+$J$2 -> 0.1 | W67: =$K$2*$F67+$L$2 ->  | AA67: 1000000 | AB67: =IF(AND(ISNUMBER(Z67)=TRUE,ISNUMBER(AA67)=TRUE),IF(OR(AND(Z67=-1000000,AA67=1000000),AND(Z67=1000000,AA67=-1000000),AND(Z67=-1000000,AA67=-1000000),AND(Z67=1000000,AA67=1000000)),0,IF(OR(Z67=1000000,Z67=-1000000),AA67,IF(OR(AA67=1000000,AA67=-1000000),Z67,AA67))),IF(ISNUMBER(Z67)=TRUE,Z67,AA67)) -> 1000000 | AD67: -1000000 | AE67: =IF(AND(ISNUMBER(AC67)=TRUE,ISNUMBER(AD67)=TRUE),IF(OR(AND(AC67=-1000000,AD67=1000000),AND(AC67=1000000,AD67=-1000000),AND(AC67=-1000000,AD67=-1000000),AND(AC67=1000000,AD67=1000000)),0,IF(OR(AC67=1000000,AC67=-1000000),AD67,IF(OR(AD67=1000000,AD67=-1000000),AC67,AD67))),IF(ISNUMBER(AC67)=TRUE,AC67,AD67)) -> -1000000 | AH67: -4.355 | AI67: 0.01 | AM67: -4.36 | AN67: 0.01
E68: =E67+process!I$4 -> -4.34 | O68: -1000000 | P68: -1000000 | V68: 0.1 | AA68: 1000000 | AB68: 1000000 | AD68: -1000000 | AE68: -1000000 | AH68: =AVERAGE(E67:E68) -> -4.345 | AI68: =E68-E67 -> 0.01 | AJ68: =F68-F67 ->  | AK68: =AJ68/AI68 ->  | AM68: -4.35 | AN68: 0.01
E69: =E68+process!I$4 -> -4.33 | O69: -1000000 | P69: -1000000 | V69: 0.1 | AA69: 1000000 | AB69: 1000000 | AD69: -1000000 | AE69: -1000000 | AH69: -4.335 | AI69: 0.01 | AM69: =AVERAGE(AH68:AH69) -> -4.34 | AN69: =AH69-AH68 -> 0.01 | AO69: =AK69-AK68 ->  | AP69: =AO69/AN69 -> 
E70: =E69+process!I$4 -> -4.32 | N70: =IF(N69=1000000,1000000,IF(N69=-1000000,-1000000,IF(AND(ISNUMBER(F70)=FALSE,F69-F68>0),1000000,IF(AND(ISNUMBER(F70)=FALSE,F69-F68<0),-1000000,F70)))) ->  | O70: =IF(O71=1000000,1000000,IF(O71=-1000000,-1000000,IF(AND(ISNUMBER(F70)=FALSE,F71-F72>0),1000000,IF(AND(ISNUMBER(F70)=FALSE,F71-F72<0),-1000000,F70)))) -> -1000000 | P70: =IF(AND(ISNUMBER(N70)=TRUE,ISNUMBER(O70)=TRUE),IF(OR(AND(N70=-1000000,O70=1000000),AND(N70=1000000,O70=-1000000),AND(N70=-1000000,O70=-1000000),AND(N70=1000000,O70=1000000)),0,IF(OR(N70=1000000,N70=-1000000),O70,IF(OR(O70=1000000,O70=-1000000),N70,O70))),IF(ISNUMBER(N70)=TRUE,N70,O70)) -> -1000000 | V70: 0.1 | Z70: =IF(Z69=1000000,1000000,IF(Z69=-1000000,-1000000,IF(AND(ISNUMBER(AK70)=FALSE,AK69-AK68>0),1000000,IF(AND(ISNUMBER(AK70)=FALSE,AK69-AK68<0),-1000000,AK70)))) ->  | AA70: =IF(AA71=1000000,1000000,IF(AA71=-1000000,-1000000,IF(AND(ISNUMBER(AK70)=FALSE,AK71-AK72>0),1000000,IF(AND(ISNUMBER(AK70)=FALSE,AK71-AK72<0),-1000000,AK70)))) -> 1000000 | AB70: 1000000 | AD70: -1000000 | AE70: -1000000 | AH70: -4.325 | AI70: 0.01 | AM70: -4.33 | AN70: 0.01
E71: =E70+process!I$4 -> -4.31 | O71: -1000000 | P71: -1000000 | V71: 0.1 | AA71: 1000000 | AB71: 1000000 | AC71: =IF(AC70=1000000,1000000,IF(AC70=-1000000,-1000000,IF(AND(ISNUMBER(AP71)=FALSE,AP70-AP69>0),1000000,IF(AND(ISNUMBER(AP71)=FALSE,AP70-AP69<0),-1000000,AP71)))) ->  | AD71: =IF(AD72=1000000,1000000,IF(AD72=-1000000,-1000000,IF(AND(ISNUMBER(AP71)=FALSE,AP72-AP73>0),1000000,IF(AND(ISNUMBER(AP71)=FALSE,AP72-AP73<0),-1000000,AP71)))) -> -1000000 | AE71: -1000000 | AH71: -4.315 | AI71: 0.01 | AM71: -4.32 | AN71: 0.01
E72: =E71+process!I$4 -> -4.3 | O72: -1000000 | P72: -1000000 | V72: 0.1 | AA72: 1000000 | AB72: 1000000 | AD72: -1000000 | AE72: -1000000 | AH72: -4.305 | AI72: 0.01 | AM72: -4.31 | AN72: 0.01
E73: =E72+process!I$4 -> -4.29 | O73: -1000000 | P73: -1000000 | V73: 0.1 | AA73: 1000000 | AB73: 1000000 | AD73: -1000000 | AE73: -1000000 | AH73: -4.295 | AI73: 0.01 | AM73: -4.3 | AN73: 0.01
E74: =E73+process!I$4 -> -4.28 | O74: -1000000 | P74: -1000000 | V74: 0.1 | AA74: 1000000 | AB74: 1000000 | AD74: -1000000 | AE74: -1000000 | AH74: -4.285 | AI74: 0.01 | AM74: -4.29 | AN74: 0.01
E75: =E74+process!I$4 -> -4.27 | O75: -1000000 | P75: -1000000 | V75: 0.1 | AA75: 1000000 | AB75: 1000000 | AD75: -1000000 | AE75: -1000000 | AH75: -4.275 | AI75: 0.01 | AM75: -4.28 | AN75: 0.01
E76: =E75+process!I$4 -> -4.26 | O76: -1000000 | P76: -1000000 | V76: 0.1 | AA76: 1000000 | AB76: 1000000 | AD76: -1000000 | AE76: -1000000 | AH76: -4.265 | AI76: 0.01 | AM76: -4.27 | AN76: 0.01
E77: =E76+process!I$4 -> -4.25 | O77: -1000000 | P77: -1000000 | V77: 0.1 | AA77: 1000000 | AB77: 1000000 | AD77: -1000000 | AE77: -1000000 | AH77: -4.255 | AI77: 0.01 | AM77: -4.26 | AN77: 0.01
E78: =E77+process!I$4 -> -4.24 | O78: -1000000 | P78: -1000000 | V78: 0.1 | AA78: 1000000 | AB78: 1000000 | AD78: -1000000 | AE78: -1000000 | AH78: -4.245 | AI78: 0.01 | AM78: -4.25 | AN78: 0.01
E79: =E78+process!I$4 -> -4.23 | O79: -1000000 | P79: -1000000 | V79: 0.1 | AA79: 1000000 | AB79: 1000000 | AD79: -1000000 | AE79: -1000000 | AH79: -4.235 | AI79: 0.01 | AM79: -4.24 | AN79: 0.01
E80: =E79+process!I$4 -> -4.22 | O80: -1000000 | P80: -1000000 | V80: 0.1 | AA80: 1000000 | AB80: 1000000 | AD80: -1000000 | AE80: -1000000 | AH80: -4.225 | AI80: 0.01 | AM80: -4.23 | AN80: 0.01
E81: =E80+process!I$4 -> -4.21 | O81: -1000000 | P81: -1000000 | V81: 0.1 | AA81: 1000000 | AB81: 1000000 | AD81: -1000000 | AE81: -1000000 | AH81: -4.215 | AI81: 0.01 | AM81: -4.22 | AN81: 0.01
E82: =E81+process!I$4 -> -4.2 | O82: -1000000 | P82: -1000000 | V82: 0.1 | AA82: 1000000 | AB82: 1000000 | AD82: -1000000 | AE82: -1000000 | AH82: -4.205 | AI82: 0.01 | AM82: -4.21 | AN82: 0.01
E83: =E82+process!I$4 -> -4.19 | O83: -1000000 | P83: -1000000 | V83: 0.1 | AA83: 1000000 | AB83: 1000000 | AD83: -1000000 | AE83: -1000000 | AH83: -4.195 | AI83: 0.01 | AM83: -4.2 | AN83: 0.01
E84: =E83+process!I$4 -> -4.18 | O84: -1000000 | P84: -1000000 | V84: 0.1 | AA84: 1000000 | AB84: 1000000 | AD84: -1000000 | AE84: -1000000 | AH84: -4.185 | AI84: 0.01 | AM84: -4.19 | AN84: 0.01
E85: =E84+process!I$4 -> -4.17 | O85: -1000000 | P85: -1000000 | V85: 0.1 | AA85: 1000000 | AB85: 1000000 | AD85: -1000000 | AE85: -1000000 | AH85: -4.175 | AI85: 0.01 | AM85: -4.18 | AN85: 0.01
E86: =E85+process!I$4 -> -4.16 | O86: -1000000 | P86: -1000000 | V86: 0.1 | AA86: 1000000 | AB86: 1000000 | AD86: -1000000 | AE86: -1000000 | AH86: -4.165 | AI86: 0.01 | AM86: -4.17 | AN86: 0.01
E87: =E86+process!I$4 -> -4.15 | O87: -1000000 | P87: -1000000 | V87: 0.1 | AA87: 1000000 | AB87: 1000000 | AD87: -1000000 | AE87: -1000000 | AH87: -4.155 | AI87: 0.01 | AM87: -4.16 | AN87: 0.01
E88: =E87+process!I$4 -> -4.14 | O88: -1000000 | P88: -1000000 | V88: 0.1 | AA88: 1000000 | AB88: 1000000 | AD88: -1000000 | AE88: -1000000 | AH88: -4.145 | AI88: 0.01 | AM88: -4.15 | AN88: 0.01
E89: =E88+process!I$4 -> -4.13 | O89: -1000000 | P89: -1000000 | V89: 0.1 | AA89: 1000000 | AB89: 1000000 | AD89: -1000000 | AE89: -1000000 | AH89: -4.135 | AI89: 0.01 | AM89: -4.14 | AN89: 0.01
E90: =E89+process!I$4 -> -4.12 | O90: -1000000 | P90: -1000000 | V90: 0.1 | AA90: 1000000 | AB90: 1000000 | AD90: -1000000 | AE90: -1000000 | AH90: -4.125 | AI90: 0.01 | AM90: -4.13 | AN90: 0.01
E91: =E90+process!I$4 -> -4.11 | O91: -1000000 | P91: -1000000 | V91: 0.1 | AA91: 1000000 | AB91: 1000000 | AD91: -1000000 | AE91: -1000000 | AH91: -4.115 | AI91: 0.01 | AM91: -4.12 | AN91: 0.01
E92: =E91+process!I$4 -> -4.1 | O92: -1000000 | P92: -1000000 | V92: 0.1 | AA92: 1000000 | AB92: 1000000 | AD92: -1000000 | AE92: -1000000 | AH92: -4.105 | AI92: 0.01 | AM92: -4.11 | AN92: 0.01
E93: =E92+process!I$4 -> -4.09 | O93: -1000000 | P93: -1000000 | V93: 0.1 | AA93: 1000000 | AB93: 1000000 | AD93: -1000000 | AE93: -1000000 | AH93: -4.095 | AI93: 0.01 | AM93: -4.1 | AN93: 0.01
E94: =E93+process!I$4 -> -4.08 | O94: -1000000 | P94: -1000000 | V94: 0.1 | AA94: 1000000 | AB94: 1000000 | AD94: -1000000 | AE94: -1000000 | AH94: -4.085 | AI94: 0.01 | AM94: -4.09 | AN94: 0.01
E95: =E94+process!I$4 -> -4.07 | O95: -1000000 | P95: -1000000 | V95: 0.1 | AA95: 1000000 | AB95: 1000000 | AD95: -1000000 | AE95: -1000000 | AH95: -4.075 | AI95: 0.01 | AM95: -4.08 | AN95: 0.01
E96: =E95+process!I$4 -> -4.06 | O96: -1000000 | P96: -1000000 | V96: 0.1 | AA96: 1000000 | AB96: 1000000 | AD96: -1000000 | AE96: -1000000 | AH96: -4.065 | AI96: 0.01 | AM96: -4.07 | AN96: 0.01
E97: =E96+process!I$4 -> -4.05 | O97: -1000000 | P97: -1000000 | V97: 0.1 | AA97: 1000000 | AB97: 1000000 | AD97: -1000000 | AE97: -1000000 | AH97: -4.055 | AI97: 0.01 | AM97: -4.06 | AN97: 0.01
E98: =E97+process!I$4 -> -4.04 | O98: -1000000 | P98: -1000000 | V98: 0.1 | AA98: 1000000 | AB98: 1000000 | AD98: -1000000 | AE98: -1000000 | AH98: -4.045 | AI98: 0.01 | AM98: -4.05 | AN98: 0.01
E99: =E98+process!I$4 -> -4.03 | O99: -1000000 | P99: -1000000 | V99: 0.1 | AA99: 1000000 | AB99: 1000000 | AD99: -1000000 | AE99: -1000000 | AH99: -4.035 | AI99: 0.01 | AM99: -4.04 | AN99: 0.01
E100: =E99+process!I$4 -> -4.02 | O100: -1000000 | P100: -1000000 | V100: 0.1 | AA100: 1000000 | AB100: 1000000 | AD100: -1000000 | AE100: -1000000 | AH100: -4.025 | AI100: 0.01 | AM100: -4.03 | AN100: 0.01
E101: =E100+process!I$4 -> -4.01 | O101: -1000000 | P101: -1000000 | V101: 0.1 | AA101: 1000000 | AB101: 1000000 | AD101: -1000000 | AE101: -1000000 | AH101: -4.015 | AI101: 0.01 | AM101: -4.02 | AN101: 0.01
E102: =E101+process!I$4 -> -4 | O102: -1000000 | P102: -1000000 | V102: 0.1 | AA102: 1000000 | AB102: 1000000 | AD102: -1000000 | AE102: -1000000 | AH102: -4.005 | AI102: 0.01 | AM102: -4.01 | AN102: 0.01
E103: =E102+process!I$4 -> -3.99 | O103: -1000000 | P103: -1000000 | V103: 0.1 | AA103: 1000000 | AB103: 1000000 | AD103: -1000000 | AE103: -1000000 | AH103: -3.995 | AI103: 0.01 | AM103: -4 | AN103: 0.01
E104: =E103+process!I$4 -> -3.98 | O104: -1000000 | P104: -1000000 | V104: 0.1 | AA104: 1000000 | AB104: 1000000 | AD104: -1000000 | AE104: -1000000 | AH104: -3.985 | AI104: 0.01 | AM104: -3.99 | AN104: 0.01
E105: =E104+process!I$4 -> -3.97 | O105: -1000000 | P105: -1000000 | V105: 0.1 | AA105: 1000000 | AB105: 1000000 | AD105: -1000000 | AE105: -1000000 | AH105: -3.975 | AI105: 0.01 | AM105: -3.98 | AN105: 0.01
E106: =E105+process!I$4 -> -3.96 | O106: -1000000 | P106: -1000000 | V106: 0.1 | AA106: 1000000 | AB106: 1000000 | AD106: -1000000 | AE106: -1000000 | AH106: -3.965 | AI106: 0.01 | AM106: -3.97 | AN106: 0.01
E107: =E106+process!I$4 -> -3.95 | O107: -1000000 | P107: -1000000 | V107: 0.1 | AA107: 1000000 | AB107: 1000000 | AD107: -1000000 | AE107: -1000000 | AH107: -3.955 | AI107: 0.01 | AM107: -3.96 | AN107: 0.01
E108: =E107+process!I$4 -> -3.94 | O108: -1000000 | P108: -1000000 | V108: 0.1 | AA108: 1000000 | AB108: 1000000 | AD108: -1000000 | AE108: -1000000 | AH108: -3.945 | AI108: 0.01 | AM108: -3.95 | AN108: 0.01
E109: =E108+process!I$4 -> -3.93 | O109: -1000000 | P109: -1000000 | V109: 0.1 | AA109: 1000000 | AB109: 1000000 | AD109: -1000000 | AE109: -1000000 | AH109: -3.935 | AI109: 0.01 | AM109: -3.94 | AN109: 0.01
E110: =E109+process!I$4 -> -3.92 | O110: -1000000 | P110: -1000000 | V110: 0.1 | AA110: 1000000 | AB110: 1000000 | AD110: -1000000 | AE110: -1000000 | AH110: -3.925 | AI110: 0.01 | AM110: -3.93 | AN110: 0.01
E111: =E110+process!I$4 -> -3.91 | O111: -1000000 | P111: -1000000 | V111: 0.1 | AA111: 1000000 | AB111: 1000000 | AD111: -1000000 | AE111: -1000000 | AH111: -3.915 | AI111: 0.01 | AM111: -3.92 | AN111: 0.01
E112: =E111+process!I$4 -> -3.9 | O112: -1000000 | P112: -1000000 | V112: 0.1 | AA112: 1000000 | AB112: 1000000 | AD112: -1000000 | AE112: -1000000 | AH112: -3.905 | AI112: 0.01 | AM112: -3.91 | AN112: 0.01
E113: =E112+process!I$4 -> -3.89 | O113: -1000000 | P113: -1000000 | V113: 0.1 | AA113: 1000000 | AB113: 1000000 | AD113: -1000000 | AE113: -1000000 | AH113: -3.895 | AI113: 0.01 | AM113: -3.9 | AN113: 0.01
E114: =E113+process!I$4 -> -3.88 | O114: -1000000 | P114: -1000000 | V114: 0.1 | AA114: 1000000 | AB114: 1000000 | AD114: -1000000 | AE114: -1000000 | AH114: -3.885 | AI114: 0.01 | AM114: -3.89 | AN114: 0.01
E115: =E114+process!I$4 -> -3.87 | O115: -1000000 | P115: -1000000 | V115: 0.1 | AA115: 1000000 | AB115: 1000000 | AD115: -1000000 | AE115: -1000000 | AH115: -3.875 | AI115: 0.01 | AM115: -3.88 | AN115: 0.01
E116: =E115+process!I$4 -> -3.86 | O116: -1000000 | P116: -1000000 | V116: 0.1 | AA116: 1000000 | AB116: 1000000 | AD116: -1000000 | AE116: -1000000 | AH116: -3.865 | AI116: 0.01 | AM116: -3.87 | AN116: 0.01
E117: =E116+process!I$4 -> -3.85 | O117: -1000000 | P117: -1000000 | V117: 0.1 | AA117: 1000000 | AB117: 1000000 | AD117: -1000000 | AE117: -1000000 | AH117: -3.855 | AI117: 0.01 | AM117: -3.86 | AN117: 0.01
E118: =E117+process!I$4 -> -3.84 | O118: -1000000 | P118: -1000000 | V118: 0.1 | AA118: 1000000 | AB118: 1000000 | AD118: -1000000 | AE118: -1000000 | AH118: -3.845 | AI118: 0.01 | AM118: -3.85 | AN118: 0.01
E119: =E118+process!I$4 -> -3.83 | O119: -1000000 | P119: -1000000 | V119: 0.1 | AA119: 1000000 | AB119: 1000000 | AD119: -1000000 | AE119: -1000000 | AH119: -3.835 | AI119: 0.01 | AM119: -3.84 | AN119: 0.01
E120: =E119+process!I$4 -> -3.82 | O120: -1000000 | P120: -1000000 | V120: 0.1 | AA120: 1000000 | AB120: 1000000 | AD120: -1000000 | AE120: -1000000 | AH120: -3.825 | AI120: 0.01 | AM120: -3.83 | AN120: 0.01
E121: =E120+process!I$4 -> -3.81 | O121: -1000000 | P121: -1000000 | V121: 0.1 | AA121: 1000000 | AB121: 1000000 | AD121: -1000000 | AE121: -1000000 | AH121: -3.815 | AI121: 0.01 | AM121: -3.82 | AN121: 0.01
E122: =E121+process!I$4 -> -3.8 | O122: -1000000 | P122: -1000000 | V122: 0.1 | AA122: 1000000 | AB122: 1000000 | AD122: -1000000 | AE122: -1000000 | AH122: -3.805 | AI122: 0.01 | AM122: -3.81 | AN122: 0.01
E123: =E122+process!I$4 -> -3.79 | O123: -1000000 | P123: -1000000 | V123: 0.1 | AA123: 1000000 | AB123: 1000000 | AD123: -1000000 | AE123: -1000000 | AH123: -3.795 | AI123: 0.01 | AM123: -3.8 | AN123: 0.01
E124: =E123+process!I$4 -> -3.78 | O124: -1000000 | P124: -1000000 | V124: 0.1 | AA124: 1000000 | AB124: 1000000 | AD124: -1000000 | AE124: -1000000 | AH124: -3.785 | AI124: 0.01 | AM124: -3.79 | AN124: 0.01
E125: =E124+process!I$4 -> -3.77 | O125: -1000000 | P125: -1000000 | V125: 0.1 | AA125: 1000000 | AB125: 1000000 | AD125: -1000000 | AE125: -1000000 | AH125: -3.775 | AI125: 0.01 | AM125: -3.78 | AN125: 0.01
E126: =E125+process!I$4 -> -3.76 | O126: -1000000 | P126: -1000000 | V126: 0.1 | AA126: 1000000 | AB126: 1000000 | AD126: -1000000 | AE126: -1000000 | AH126: -3.765 | AI126: 0.01 | AM126: -3.77 | AN126: 0.01
E127: =E126+process!I$4 -> -3.75 | O127: -1000000 | P127: -1000000 | V127: 0.1 | AA127: 1000000 | AB127: 1000000 | AD127: -1000000 | AE127: -1000000 | AH127: -3.755 | AI127: 0.01 | AM127: -3.76 | AN127: 0.01
E128: =E127+process!I$4 -> -3.74 | O128: -1000000 | P128: -1000000 | V128: 0.1 | AA128: 1000000 | AB128: 1000000 | AD128: -1000000 | AE128: -1000000 | AH128: -3.745 | AI128: 0.01 | AM128: -3.75 | AN128: 0.01
E129: =E128+process!I$4 -> -3.73 | O129: -1000000 | P129: -1000000 | V129: 0.1 | AA129: 1000000 | AB129: 1000000 | AD129: -1000000 | AE129: -1000000 | AH129: -3.735 | AI129: 0.01 | AM129: -3.74 | AN129: 0.01
E130: =E129+process!I$4 -> -3.72 | O130: -1000000 | P130: -1000000 | V130: 0.1 | AA130: 1000000 | AB130: 1000000 | AD130: -1000000 | AE130: -1000000 | AH130: -3.725 | AI130: 0.01 | AM130: -3.73 | AN130: 0.01
E131: =E130+process!I$4 -> -3.71 | F131: =$I$2*LN($E131) ->  | O131: -1000000 | P131: -1000000 | V131: =$I$2*$G131^2+$J$2 -> 0.1 | W131: =$K$2*$F131+$L$2 ->  | AA131: 1000000 | AB131: =IF(AND(ISNUMBER(Z131)=TRUE,ISNUMBER(AA131)=TRUE),IF(OR(AND(Z131=-1000000,AA131=1000000),AND(Z131=1000000,AA131=-1000000),AND(Z131=-1000000,AA131=-1000000),AND(Z131=1000000,AA131=1000000)),0,IF(OR(Z131=1000000,Z131=-1000000),AA131,IF(OR(AA131=1000000,AA131=-1000000),Z131,AA131))),IF(ISNUMBER(Z131)=TRUE,Z131,AA131)) -> 1000000 | AD131: -1000000 | AE131: =IF(AND(ISNUMBER(AC131)=TRUE,ISNUMBER(AD131)=TRUE),IF(OR(AND(AC131=-1000000,AD131=1000000),AND(AC131=1000000,AD131=-1000000),AND(AC131=-1000000,AD131=-1000000),AND(AC131=1000000,AD131=1000000)),0,IF(OR(AC131=1000000,AC131=-1000000),AD131,IF(OR(AD131=1000000,AD131=-1000000),AC131,AD131))),IF(ISNUMBER(AC131)=TRUE,AC131,AD131)) -> -1000000 | AH131: -3.715 | AI131: 0.01 | AM131: -3.72 | AN131: 0.01
E132: =E131+process!I$4 -> -3.7 | O132: -1000000 | P132: -1000000 | V132: 0.1 | AA132: 1000000 | AB132: 1000000 | AD132: -1000000 | AE132: -1000000 | AH132: =AVERAGE(E131:E132) -> -3.705 | AI132: =E132-E131 -> 0.01 | AJ132: =F132-F131 ->  | AK132: =AJ132/AI132 ->  | AM132: -3.71 | AN132: 0.01
E133: =E132+process!I$4 -> -3.69 | O133: -1000000 | P133: -1000000 | V133: 0.1 | AA133: 1000000 | AB133: 1000000 | AD133: -1000000 | AE133: -1000000 | AH133: -3.695 | AI133: 0.01 | AM133: =AVERAGE(AH132:AH133) -> -3.7 | AN133: =AH133-AH132 -> 0.01 | AO133: =AK133-AK132 ->  | AP133: =AO133/AN133 -> 
E134: =E133+process!I$4 -> -3.68 | N134: =IF(N133=1000000,1000000,IF(N133=-1000000,-1000000,IF(AND(ISNUMBER(F134)=FALSE,F133-F132>0),1000000,IF(AND(ISNUMBER(F134)=FALSE,F133-F132<0),-1000000,F134)))) ->  | O134: =IF(O135=1000000,1000000,IF(O135=-1000000,-1000000,IF(AND(ISNUMBER(F134)=FALSE,F135-F136>0),1000000,IF(AND(ISNUMBER(F134)=FALSE,F135-F136<0),-1000000,F134)))) -> -1000000 | P134: =IF(AND(ISNUMBER(N134)=TRUE,ISNUMBER(O134)=TRUE),IF(OR(AND(N134=-1000000,O134=1000000),AND(N134=1000000,O134=-1000000),AND(N134=-1000000,O134=-1000000),AND(N134=1000000,O134=1000000)),0,IF(OR(N134=1000000,N134=-1000000),O134,IF(OR(O134=1000000,O134=-1000000),N134,O134))),IF(ISNUMBER(N134)=TRUE,N134,O134)) -> -1000000 | V134: 0.1 | Z134: =IF(Z133=1000000,1000000,IF(Z133=-1000000,-1000000,IF(AND(ISNUMBER(AK134)=FALSE,AK133-AK132>0),1000000,IF(AND(ISNUMBER(AK134)=FALSE,AK133-AK132<0),-1000000,AK134)))) ->  | AA134: =IF(AA135=1000000,1000000,IF(AA135=-1000000,-1000000,IF(AND(ISNUMBER(AK134)=FALSE,AK135-AK136>0),1000000,IF(AND(ISNUMBER(AK134)=FALSE,AK135-AK136<0),-1000000,AK134)))) -> 1000000 | AB134: 1000000 | AD134: -1000000 | AE134: -1000000 | AH134: -3.685 | AI134: 0.01 | AM134: -3.69 | AN134: 0.01
E135: =E134+process!I$4 -> -3.67 | O135: -1000000 | P135: -1000000 | V135: 0.1 | AA135: 1000000 | AB135: 1000000 | AC135: =IF(AC134=1000000,1000000,IF(AC134=-1000000,-1000000,IF(AND(ISNUMBER(AP135)=FALSE,AP134-AP133>0),1000000,IF(AND(ISNUMBER(AP135)=FALSE,AP134-AP133<0),-1000000,AP135)))) ->  | AD135: =IF(AD136=1000000,1000000,IF(AD136=-1000000,-1000000,IF(AND(ISNUMBER(AP135)=FALSE,AP136-AP137>0),1000000,IF(AND(ISNUMBER(AP135)=FALSE,AP136-AP137<0),-1000000,AP135)))) -> -1000000 | AE135: -1000000 | AH135: -3.675 | AI135: 0.01 | AM135: -3.68 | AN135: 0.01
E136: =E135+process!I$4 -> -3.66 | O136: -1000000 | P136: -1000000 | V136: 0.1 | AA136: 1000000 | AB136: 1000000 | AD136: -1000000 | AE136: -1000000 | AH136: -3.665 | AI136: 0.01 | AM136: -3.67 | AN136: 0.01
E137: =E136+process!I$4 -> -3.65 | O137: -1000000 | P137: -1000000 | V137: 0.1 | AA137: 1000000 | AB137: 1000000 | AD137: -1000000 | AE137: -1000000 | AH137: -3.655 | AI137: 0.01 | AM137: -3.66 | AN137: 0.01
E138: =E137+process!I$4 -> -3.64 | O138: -1000000 | P138: -1000000 | V138: 0.1 | AA138: 1000000 | AB138: 1000000 | AD138: -1000000 | AE138: -1000000 | AH138: -3.645 | AI138: 0.01 | AM138: -3.65 | AN138: 0.01
E139: =E138+process!I$4 -> -3.63 | O139: -1000000 | P139: -1000000 | V139: 0.1 | AA139: 1000000 | AB139: 1000000 | AD139: -1000000 | AE139: -1000000 | AH139: -3.635 | AI139: 0.01 | AM139: -3.64 | AN139: 0.01
E140: =E139+process!I$4 -> -3.62 | O140: -1000000 | P140: -1000000 | V140: 0.1 | AA140: 1000000 | AB140: 1000000 | AD140: -1000000 | AE140: -1000000 | AH140: -3.625 | AI140: 0.01 | AM140: -3.63 | AN140: 0.01
E141: =E140+process!I$4 -> -3.61 | O141: -1000000 | P141: -1000000 | V141: 0.1 | AA141: 1000000 | AB141: 1000000 | AD141: -1000000 | AE141: -1000000 | AH141: -3.615 | AI141: 0.01 | AM141: -3.62 | AN141: 0.01
E142: =E141+process!I$4 -> -3.6 | O142: -1000000 | P142: -1000000 | V142: 0.1 | AA142: 1000000 | AB142: 1000000 | AD142: -1000000 | AE142: -1000000 | AH142: -3.605 | AI142: 0.01 | AM142: -3.61 | AN142: 0.01
E143: =E142+process!I$4 -> -3.59 | O143: -1000000 | P143: -1000000 | V143: 0.1 | AA143: 1000000 | AB143: 1000000 | AD143: -1000000 | AE143: -1000000 | AH143: -3.595 | AI143: 0.01 | AM143: -3.6 | AN143: 0.01
E144: =E143+process!I$4 -> -3.58 | O144: -1000000 | P144: -1000000 | V144: 0.1 | AA144: 1000000 | AB144: 1000000 | AD144: -1000000 | AE144: -1000000 | AH144: -3.585 | AI144: 0.01 | AM144: -3.59 | AN144: 0.01
E145: =E144+process!I$4 -> -3.57 | O145: -1000000 | P145: -1000000 | V145: 0.1 | AA145: 1000000 | AB145: 1000000 | AD145: -1000000 | AE145: -1000000 | AH145: -3.575 | AI145: 0.01 | AM145: -3.58 | AN145: 0.01
E146: =E145+process!I$4 -> -3.56 | O146: -1000000 | P146: -1000000 | V146: 0.1 | AA146: 1000000 | AB146: 1000000 | AD146: -1000000 | AE146: -1000000 | AH146: -3.565 | AI146: 0.01 | AM146: -3.57 | AN146: 0.01
E147: =E146+process!I$4 -> -3.55 | O147: -1000000 | P147: -1000000 | V147: 0.1 | AA147: 1000000 | AB147: 1000000 | AD147: -1000000 | AE147: -1000000 | AH147: -3.555 | AI147: 0.01 | AM147: -3.56 | AN147: 0.01
E148: =E147+process!I$4 -> -3.54 | O148: -1000000 | P148: -1000000 | V148: 0.1 | AA148: 1000000 | AB148: 1000000 | AD148: -1000000 | AE148: -1000000 | AH148: -3.545 | AI148: 0.01 | AM148: -3.55 | AN148: 0.01
E149: =E148+process!I$4 -> -3.53 | O149: -1000000 | P149: -1000000 | V149: 0.1 | AA149: 1000000 | AB149: 1000000 | AD149: -1000000 | AE149: -1000000 | AH149: -3.535 | AI149: 0.01 | AM149: -3.54 | AN149: 0.01
E150: =E149+process!I$4 -> -3.52 | O150: -1000000 | P150: -1000000 | V150: 0.1 | AA150: 1000000 | AB150: 1000000 | AD150: -1000000 | AE150: -1000000 | AH150: -3.525 | AI150: 0.01 | AM150: -3.53 | AN150: 0.01
E151: =E150+process!I$4 -> -3.51 | O151: -1000000 | P151: -1000000 | V151: 0.1 | AA151: 1000000 | AB151: 1000000 | AD151: -1000000 | AE151: -1000000 | AH151: -3.515 | AI151: 0.01 | AM151: -3.52 | AN151: 0.01
E152: =E151+process!I$4 -> -3.5 | O152: -1000000 | P152: -1000000 | V152: 0.1 | AA152: 1000000 | AB152: 1000000 | AD152: -1000000 | AE152: -1000000 | AH152: -3.505 | AI152: 0.01 | AM152: -3.51 | AN152: 0.01
E153: =E152+process!I$4 -> -3.49 | O153: -1000000 | P153: -1000000 | V153: 0.1 | AA153: 1000000 | AB153: 1000000 | AD153: -1000000 | AE153: -1000000 | AH153: -3.495 | AI153: 0.01 | AM153: -3.5 | AN153: 0.01
E154: =E153+process!I$4 -> -3.48 | O154: -1000000 | P154: -1000000 | V154: 0.1 | AA154: 1000000 | AB154: 1000000 | AD154: -1000000 | AE154: -1000000 | AH154: -3.485 | AI154: 0.01 | AM154: -3.49 | AN154: 0.01
E155: =E154+process!I$4 -> -3.47 | O155: -1000000 | P155: -1000000 | V155: 0.1 | AA155: 1000000 | AB155: 1000000 | AD155: -1000000 | AE155: -1000000 | AH155: -3.475 | AI155: 0.01 | AM155: -3.48 | AN155: 0.01
E156: =E155+process!I$4 -> -3.46 | O156: -1000000 | P156: -1000000 | V156: 0.1 | AA156: 1000000 | AB156: 1000000 | AD156: -1000000 | AE156: -1000000 | AH156: -3.465 | AI156: 0.01 | AM156: -3.47 | AN156: 0.01
E157: =E156+process!I$4 -> -3.45 | O157: -1000000 | P157: -1000000 | V157: 0.1 | AA157: 1000000 | AB157: 1000000 | AD157: -1000000 | AE157: -1000000 | AH157: -3.455 | AI157: 0.01 | AM157: -3.46 | AN157: 0.01
E158: =E157+process!I$4 -> -3.44 | O158: -1000000 | P158: -1000000 | V158: 0.1 | AA158: 1000000 | AB158: 1000000 | AD158: -1000000 | AE158: -1000000 | AH158: -3.445 | AI158: 0.01 | AM158: -3.45 | AN158: 0.01
E159: =E158+process!I$4 -> -3.43 | O159: -1000000 | P159: -1000000 | V159: 0.1 | AA159: 1000000 | AB159: 1000000 | AD159: -1000000 | AE159: -1000000 | AH159: -3.435 | AI159: 0.01 | AM159: -3.44 | AN159: 0.01
E160: =E159+process!I$4 -> -3.42 | O160: -1000000 | P160: -1000000 | V160: 0.1 | AA160: 1000000 | AB160: 1000000 | AD160: -1000000 | AE160: -1000000 | AH160: -3.425 | AI160: 0.01 | AM160: -3.43 | AN160: 0.01
E161: =E160+process!I$4 -> -3.41 | O161: -1000000 | P161: -1000000 | V161: 0.1 | AA161: 1000000 | AB161: 1000000 | AD161: -1000000 | AE161: -1000000 | AH161: -3.415 | AI161: 0.01 | AM161: -3.42 | AN161: 0.01
E162: =E161+process!I$4 -> -3.4 | O162: -1000000 | P162: -1000000 | V162: 0.1 | AA162: 1000000 | AB162: 1000000 | AD162: -1000000 | AE162: -1000000 | AH162: -3.405 | AI162: 0.01 | AM162: -3.41 | AN162: 0.01
E163: =E162+process!I$4 -> -3.39 | O163: -1000000 | P163: -1000000 | V163: 0.1 | AA163: 1000000 | AB163: 1000000 | AD163: -1000000 | AE163: -1000000 | AH163: -3.395 | AI163: 0.01 | AM163: -3.4 | AN163: 0.01
E164: =E163+process!I$4 -> -3.38 | O164: -1000000 | P164: -1000000 | V164: 0.1 | AA164: 1000000 | AB164: 1000000 | AD164: -1000000 | AE164: -1000000 | AH164: -3.385 | AI164: 0.01 | AM164: -3.39 | AN164: 0.01
E165: =E164+process!I$4 -> -3.37 | O165: -1000000 | P165: -1000000 | V165: 0.1 | AA165: 1000000 | AB165: 1000000 | AD165: -1000000 | AE165: -1000000 | AH165: -3.375 | AI165: 0.01 | AM165: -3.38 | AN165: 0.01
E166: =E165+process!I$4 -> -3.36 | O166: -1000000 | P166: -1000000 | V166: 0.1 | AA166: 1000000 | AB166: 1000000 | AD166: -1000000 | AE166: -1000000 | AH166: -3.365 | AI166: 0.01 | AM166: -3.37 | AN166: 0.01
E167: =E166+process!I$4 -> -3.35 | O167: -1000000 | P167: -1000000 | V167: 0.1 | AA167: 1000000 | AB167: 1000000 | AD167: -1000000 | AE167: -1000000 | AH167: -3.355 | AI167: 0.01 | AM167: -3.36 | AN167: 0.01
E168: =E167+process!I$4 -> -3.34 | O168: -1000000 | P168: -1000000 | V168: 0.1 | AA168: 1000000 | AB168: 1000000 | AD168: -1000000 | AE168: -1000000 | AH168: -3.345 | AI168: 0.01 | AM168: -3.35 | AN168: 0.01
E169: =E168+process!I$4 -> -3.33 | O169: -1000000 | P169: -1000000 | V169: 0.1 | AA169: 1000000 | AB169: 1000000 | AD169: -1000000 | AE169: -1000000 | AH169: -3.335 | AI169: 0.01 | AM169: -3.34 | AN169: 0.01
E170: =E169+process!I$4 -> -3.32 | O170: -1000000 | P170: -1000000 | V170: 0.1 | AA170: 1000000 | AB170: 1000000 | AD170: -1000000 | AE170: -1000000 | AH170: -3.325 | AI170: 0.01 | AM170: -3.33 | AN170: 0.01
E171: =E170+process!I$4 -> -3.31 | O171: -1000000 | P171: -1000000 | V171: 0.1 | AA171: 1000000 | AB171: 1000000 | AD171: -1000000 | AE171: -1000000 | AH171: -3.315 | AI171: 0.01 | AM171: -3.32 | AN171: 0.01
E172: =E171+process!I$4 -> -3.3 | O172: -1000000 | P172: -1000000 | V172: 0.1 | AA172: 1000000 | AB172: 1000000 | AD172: -1000000 | AE172: -1000000 | AH172: -3.305 | AI172: 0.01 | AM172: -3.31 | AN172: 0.01
E173: =E172+process!I$4 -> -3.29 | O173: -1000000 | P173: -1000000 | V173: 0.1 | AA173: 1000000 | AB173: 1000000 | AD173: -1000000 | AE173: -1000000 | AH173: -3.295 | AI173: 0.01 | AM173: -3.3 | AN173: 0.01
E174: =E173+process!I$4 -> -3.28 | O174: -1000000 | P174: -1000000 | V174: 0.1 | AA174: 1000000 | AB174: 1000000 | AD174: -1000000 | AE174: -1000000 | AH174: -3.285 | AI174: 0.01 | AM174: -3.29 | AN174: 0.01
E175: =E174+process!I$4 -> -3.27 | O175: -1000000 | P175: -1000000 | V175: 0.1 | AA175: 1000000 | AB175: 1000000 | AD175: -1000000 | AE175: -1000000 | AH175: -3.275 | AI175: 0.01 | AM175: -3.28 | AN175: 0.01
E176: =E175+process!I$4 -> -3.26 | O176: -1000000 | P176: -1000000 | V176: 0.1 | AA176: 1000000 | AB176: 1000000 | AD176: -1000000 | AE176: -1000000 | AH176: -3.265 | AI176: 0.01 | AM176: -3.27 | AN176: 0.01
E177: =E176+process!I$4 -> -3.25 | O177: -1000000 | P177: -1000000 | V177: 0.1 | AA177: 1000000 | AB177: 1000000 | AD177: -1000000 | AE177: -1000000 | AH177: -3.255 | AI177: 0.01 | AM177: -3.26 | AN177: 0.01
E178: =E177+process!I$4 -> -3.24 | O178: -1000000 | P178: -1000000 | V178: 0.1 | AA178: 1000000 | AB178: 1000000 | AD178: -1000000 | AE178: -1000000 | AH178: -3.245 | AI178: 0.01 | AM178: -3.25 | AN178: 0.01
E179: =E178+process!I$4 -> -3.23 | O179: -1000000 | P179: -1000000 | V179: 0.1 | AA179: 1000000 | AB179: 1000000 | AD179: -1000000 | AE179: -1000000 | AH179: -3.235 | AI179: 0.01 | AM179: -3.24 | AN179: 0.01
E180: =E179+process!I$4 -> -3.22 | O180: -1000000 | P180: -1000000 | V180: 0.1 | AA180: 1000000 | AB180: 1000000 | AD180: -1000000 | AE180: -1000000 | AH180: -3.225 | AI180: 0.01 | AM180: -3.23 | AN180: 0.01
E181: =E180+process!I$4 -> -3.21 | O181: -1000000 | P181: -1000000 | V181: 0.1 | AA181: 1000000 | AB181: 1000000 | AD181: -1000000 | AE181: -1000000 | AH181: -3.215 | AI181: 0.01 | AM181: -3.22 | AN181: 0.01
E182: =E181+process!I$4 -> -3.2 | O182: -1000000 | P182: -1000000 | V182: 0.1 | AA182: 1000000 | AB182: 1000000 | AD182: -1000000 | AE182: -1000000 | AH182: -3.205 | AI182: 0.01 | AM182: -3.21 | AN182: 0.01
E183: =E182+process!I$4 -> -3.19 | O183: -1000000 | P183: -1000000 | V183: 0.1 | AA183: 1000000 | AB183: 1000000 | AD183: -1000000 | AE183: -1000000 | AH183: -3.195 | AI183: 0.01 | AM183: -3.2 | AN183: 0.01
E184: =E183+process!I$4 -> -3.18 | O184: -1000000 | P184: -1000000 | V184: 0.1 | AA184: 1000000 | AB184: 1000000 | AD184: -1000000 | AE184: -1000000 | AH184: -3.185 | AI184: 0.01 | AM184: -3.19 | AN184: 0.01
E185: =E184+process!I$4 -> -3.17 | O185: -1000000 | P185: -1000000 | V185: 0.1 | AA185: 1000000 | AB185: 1000000 | AD185: -1000000 | AE185: -1000000 | AH185: -3.175 | AI185: 0.01 | AM185: -3.18 | AN185: 0.01
E186: =E185+process!I$4 -> -3.16 | O186: -1000000 | P186: -1000000 | V186: 0.1 | AA186: 1000000 | AB186: 1000000 | AD186: -1000000 | AE186: -1000000 | AH186: -3.165 | AI186: 0.01 | AM186: -3.17 | AN186: 0.01
E187: =E186+process!I$4 -> -3.15 | O187: -1000000 | P187: -1000000 | V187: 0.1 | AA187: 1000000 | AB187: 1000000 | AD187: -1000000 | AE187: -1000000 | AH187: -3.155 | AI187: 0.01 | AM187: -3.16 | AN187: 0.01
E188: =E187+process!I$4 -> -3.14 | O188: -1000000 | P188: -1000000 | V188: 0.1 | AA188: 1000000 | AB188: 1000000 | AD188: -1000000 | AE188: -1000000 | AH188: -3.145 | AI188: 0.01 | AM188: -3.15 | AN188: 0.01
E189: =E188+process!I$4 -> -3.13 | O189: -1000000 | P189: -1000000 | V189: 0.1 | AA189: 1000000 | AB189: 1000000 | AD189: -1000000 | AE189: -1000000 | AH189: -3.135 | AI189: 0.01 | AM189: -3.14 | AN189: 0.01
E190: =E189+process!I$4 -> -3.12 | O190: -1000000 | P190: -1000000 | V190: 0.1 | AA190: 1000000 | AB190: 1000000 | AD190: -1000000 | AE190: -1000000 | AH190: -3.125 | AI190: 0.01 | AM190: -3.13 | AN190: 0.01
E191: =E190+process!I$4 -> -3.11 | O191: -1000000 | P191: -1000000 | V191: 0.1 | AA191: 1000000 | AB191: 1000000 | AD191: -1000000 | AE191: -1000000 | AH191: -3.115 | AI191: 0.01 | AM191: -3.12 | AN191: 0.01
E192: =E191+process!I$4 -> -3.1 | O192: -1000000 | P192: -1000000 | V192: 0.1 | AA192: 1000000 | AB192: 1000000 | AD192: -1000000 | AE192: -1000000 | AH192: -3.105 | AI192: 0.01 | AM192: -3.11 | AN192: 0.01
E193: =E192+process!I$4 -> -3.09 | O193: -1000000 | P193: -1000000 | V193: 0.1 | AA193: 1000000 | AB193: 1000000 | AD193: -1000000 | AE193: -1000000 | AH193: -3.095 | AI193: 0.01 | AM193: -3.1 | AN193: 0.01
E194: =E193+process!I$4 -> -3.08 | O194: -1000000 | P194: -1000000 | V194: 0.1 | AA194: 1000000 | AB194: 1000000 | AD194: -1000000 | AE194: -1000000 | AH194: -3.085 | AI194: 0.01 | AM194: -3.09 | AN194: 0.01
E195: =E194+process!I$4 -> -3.07 | F195: =$I$2*LN($E195) ->  | O195: -1000000 | P195: -1000000 | V195: =$I$2*$G195^2+$J$2 -> 0.1 | W195: =$K$2*$F195+$L$2 ->  | AA195: 1000000 | AB195: =IF(AND(ISNUMBER(Z195)=TRUE,ISNUMBER(AA195)=TRUE),IF(OR(AND(Z195=-1000000,AA195=1000000),AND(Z195=1000000,AA195=-1000000),AND(Z195=-1000000,AA195=-1000000),AND(Z195=1000000,AA195=1000000)),0,IF(OR(Z195=1000000,Z195=-1000000),AA195,IF(OR(AA195=1000000,AA195=-1000000),Z195,AA195))),IF(ISNUMBER(Z195)=TRUE,Z195,AA195)) -> 1000000 | AD195: -1000000 | AE195: =IF(AND(ISNUMBER(AC195)=TRUE,ISNUMBER(AD195)=TRUE),IF(OR(AND(AC195=-1000000,AD195=1000000),AND(AC195=1000000,AD195=-1000000),AND(AC195=-1000000,AD195=-1000000),AND(AC195=1000000,AD195=1000000)),0,IF(OR(AC195=1000000,AC195=-1000000),AD195,IF(OR(AD195=1000000,AD195=-1000000),AC195,AD195))),IF(ISNUMBER(AC195)=TRUE,AC195,AD195)) -> -1000000 | AH195: -3.075 | AI195: 0.01 | AM195: -3.08 | AN195: 0.01
E196: =E195+process!I$4 -> -3.06 | O196: -1000000 | P196: -1000000 | V196: 0.1 | AA196: 1000000 | AB196: 1000000 | AD196: -1000000 | AE196: -1000000 | AH196: =AVERAGE(E195:E196) -> -3.065 | AI196: =E196-E195 -> 0.01 | AJ196: =F196-F195 ->  | AK196: =AJ196/AI196 ->  | AM196: -3.07 | AN196: 0.01
E197: =E196+process!I$4 -> -3.05 | O197: -1000000 | P197: -1000000 | V197: 0.1 | AA197: 1000000 | AB197: 1000000 | AD197: -1000000 | AE197: -1000000 | AH197: -3.055 | AI197: 0.01 | AM197: =AVERAGE(AH196:AH197) -> -3.06 | AN197: =AH197-AH196 -> 0.01 | AO197: =AK197-AK196 ->  | AP197: =AO197/AN197 -> 
E198: =E197+process!I$4 -> -3.04 | N198: =IF(N197=1000000,1000000,IF(N197=-1000000,-1000000,IF(AND(ISNUMBER(F198)=FALSE,F197-F196>0),1000000,IF(AND(ISNUMBER(F198)=FALSE,F197-F196<0),-1000000,F198)))) ->  | O198: =IF(O199=1000000,1000000,IF(O199=-1000000,-1000000,IF(AND(ISNUMBER(F198)=FALSE,F199-F200>0),1000000,IF(AND(ISNUMBER(F198)=FALSE,F199-F200<0),-1000000,F198)))) -> -1000000 | P198: =IF(AND(ISNUMBER(N198)=TRUE,ISNUMBER(O198)=TRUE),IF(OR(AND(N198=-1000000,O198=1000000),AND(N198=1000000,O198=-1000000),AND(N198=-1000000,O198=-1000000),AND(N198=1000000,O198=1000000)),0,IF(OR(N198=1000000,N198=-1000000),O198,IF(OR(O198=1000000,O198=-1000000),N198,O198))),IF(ISNUMBER(N198)=TRUE,N198,O198)) -> -1000000 | V198: 0.1 | Z198: =IF(Z197=1000000,1000000,IF(Z197=-1000000,-1000000,IF(AND(ISNUMBER(AK198)=FALSE,AK197-AK196>0),1000000,IF(AND(ISNUMBER(AK198)=FALSE,AK197-AK196<0),-1000000,AK198)))) ->  | AA198: =IF(AA199=1000000,1000000,IF(AA199=-1000000,-1000000,IF(AND(ISNUMBER(AK198)=FALSE,AK199-AK200>0),1000000,IF(AND(ISNUMBER(AK198)=FALSE,AK199-AK200<0),-1000000,AK198)))) -> 1000000 | AB198: 1000000 | AD198: -1000000 | AE198: -1000000 | AH198: -3.045 | AI198: 0.01 | AM198: -3.05 | AN198: 0.01
E199: =E198+process!I$4 -> -3.03 | O199: -1000000 | P199: -1000000 | V199: 0.1 | AA199: 1000000 | AB199: 1000000 | AC199: =IF(AC198=1000000,1000000,IF(AC198=-1000000,-1000000,IF(AND(ISNUMBER(AP199)=FALSE,AP198-AP197>0),1000000,IF(AND(ISNUMBER(AP199)=FALSE,AP198-AP197<0),-1000000,AP199)))) ->  | AD199: =IF(AD200=1000000,1000000,IF(AD200=-1000000,-1000000,IF(AND(ISNUMBER(AP199)=FALSE,AP200-AP201>0),1000000,IF(AND(ISNUMBER(AP199)=FALSE,AP200-AP201<0),-1000000,AP199)))) -> -1000000 | AE199: -1000000 | AH199: -3.035 | AI199: 0.01 | AM199: -3.04 | AN199: 0.01
E200: =E199+process!I$4 -> -3.02 | O200: -1000000 | P200: -1000000 | V200: 0.1 | AA200: 1000000 | AB200: 1000000 | AD200: -1000000 | AE200: -1000000 | AH200: -3.025 | AI200: 0.01 | AM200: -3.03 | AN200: 0.01
... 802 more rows
